bitfinex/quotes_ETHUSD_20250814
["timestamp","ask_amount","ask_price","bid_price","bid_amount"]
[1755186710276,34.06248483,4616.1,4615.8,0.001]
[1755186710521,7.71548483,4616.1,4615.8,0.001]
[1755186712599,7.14328483,4616.1,4615.8,0.001]
[1755186712780,7.40253088,4616.1,4615.8,0.001]
[1755186712984,0.108,4616.1,4615.8,0.001]
[1755186713171,3.761,4616.1,4615.8,0.001]
[1755186714340,2.16563152,4617.6,4615.8,0.001]
[1755186714341,0.108,4616.5,4615.9,2.16639399]
[1755186714623,0.108,4616.5,4615.8,0.109]
[1755186714624,3.761,4616.5,4616.3,2.16623046]
[1755186714827,3.761,4616.5,4616.0,0.001]
[1755186715282,0.9248,4616.4,4616.0,0.001]
[1755186715624,0.108,4616.1,4616.0,0.001]
[1755186715828,1.032,4616.1,4616.0,0.001]
[1755186715997,3.19833088,4616.1,4616.0,0.001]
[1755186716490,0.1072,4616.1,4616.0,0.001]
[1755186716740,0.108,4616.1,4616.0,0.0018]
[1755186716888,0.108,4616.1,4616.0,2.16817781]
[1755186717285,0.108,4616.1,4616.0,0.0018]
[1755186717832,3.652,4616.4,4616.0,0.0018]
[1755186717995,2.27433088,4616.1,4616.0,0.0018]
[1755186718325,3.74913088,4616.1,4616.0,0.0018]
[1755186719286,8.04913088,4616.1,4616.0,0.0018]
[1755186720426,38.04913088,4616.1,4616.0,0.0018]
[1755186720595,2.71637781,4616.0,4615.8,0.001]
[1755186720780,2.71637781,4616.0,4614.1,0.109]
[1755186720781,0.55,4615.6,4609.9,0.1874]
[1755186720980,0.1088,4611.9,4611.2,0.1088]
[1755186721392,0.1088,4611.9,4611.2,2.27743261]
[1755186721607,2.16768029,4613.3,4612.3,2.16809866]
[1755186721808,0.108,4612.8,4612.1,0.1088]
[1755186722128,0.108,4612.8,4611.2,0.1864]
[1755186722129,0.55,4612.4,4610.3,0.001]
[1755186722328,0.55,4612.6,4610.3,0.001]
[1755186722329,2.16863289,4611.2,4610.3,0.001]
[1755186722544,5.92843289,4611.2,4610.3,0.001]
[1755186722742,7.76843289,4611.2,4610.3,0.001]
[1755186722947,37.76843289,4611.2,4610.3,0.001]
[1755186723242,37.65963289,4611.2,4610.3,0.001]
[1755186724519,40.65963289,4611.2,4611.1,1e-08]
[1755186725011,37.00863289,4611.2,4611.1,1e-08]
[1755186725203,40.65963289,4611.2,4611.1,1e-08]
[1755186725702,5.81963289,4611.2,4611.1,1e-08]
[1755186725902,3.651,4611.2,4611.1,1e-08]
[1755186726238,3.651,4611.2,4611.1,2.16867993]
[1755186726538,5.196,4611.7,4611.1,1e-08]
[1755186726745,3.651,4611.6,4611.3,2.16854397]
[1755186726908,3.651,4611.6,4611.1,1e-08]
[1755186727103,2.16693422,4614.9,4611.1,1e-08]
[1755186727104,0.4331,4613.1,4611.2,0.6305]
[1755186727297,3.651,4613.0,4611.2,0.6305]
[1755186727511,0.4917,4614.1,4611.3,0.6305]
[1755186727710,34.26338,4614.0,4611.1,1e-08]
[1755186728048,3.0,4613.8,4611.7,2.16838155]
[1755186728223,2.16791705,4612.8,4611.8,2.16833268]
[1755186728414,5.81793518,4612.7,4611.8,2.16833268]
[1755186728612,0.4917,4612.6,4611.1,1e-08]
[1755186728818,0.55,4612.4,4611.1,1e-08]
[1755186729141,2.71827338,4612.0,4611.1,1e-08]
[1755186729450,2.16839012,4611.8,4611.1,1e-08]
[1755186729649,5.81931542,4611.9,4611.1,1e-08]
[1755186729853,3.651,4611.9,4611.1,1e-08]
[1755186730016,5.81930767,4611.9,4611.1,1e-08]
[1755186730211,3.651,4611.9,4611.1,1e-08]
[1755186730411,0.4917,4612.3,4611.1,1e-08]
[1755186730653,3.65,4612.2,4611.2,2.16863289]
[1755186730851,3.65,4612.2,4611.2,0.21686329]
[1755186731059,0.61238,4614.0,4611.4,3.0]
[1755186731225,0.61238,4614.0,4611.2,0.4441]
[1755186731226,3.651,4613.9,4611.5,0.65218491]
[1755186731425,3.651,4613.9,4611.6,0.4441]
[1755186731642,2.16768719,4613.3,4611.6,0.6305]
[1755186731827,3.65,4613.2,4611.8,3.0]
[1755186732028,4.015,4613.1,4612.2,2.16813923]
[1755186732226,4.015,4613.1,4611.8,2.16831997]
[1755186732467,0.55,4612.9,4611.1,1e-08]
[1755186732692,2.16856486,4611.4,4611.1,1e-08]
[1755186732858,3.65,4611.3,4611.1,1e-08]
[1755186733055,1.2898,4613.1,4611.2,0.4441]
[1755186733351,0.108,4613.1,4611.4,2.16853883]
[1755186733550,3.65,4613.2,4612.8,2.16785322]
[1755186733803,3.65,4613.2,4612.9,2.16780986]
[1755186734316,3.65,4613.2,4612.7,0.108]
[1755186734903,0.4917,4614.5,4612.1,0.1864]
[1755186735229,2.27565579,4613.3,4612.6,0.108]
[1755186735496,3.65,4613.2,4612.7,2.16791853]
[1755186735652,3.65,4613.2,4612.6,0.108]
[1755186736090,0.108,4613.3,4613.2,2.1676927]
[1755186736297,3.65,4613.6,4613.4,2.16758618]
[1755186736453,3.758,4613.7,4613.3,2.16763478]
[1755186736653,3.758,4613.7,4613.2,2.16766816]
[1755186736895,3.758,4613.7,4613.0,0.108]
[1755186737193,0.108,4613.7,4613.0,0.33559109]
[1755186737378,0.108,4613.7,4613.0,0.108]
[1755186737587,3.649,4613.8,4613.4,2.1675875]
[1755186737770,3.649,4613.8,4613.3,2.16763895]
[1755186737974,3.649,4613.8,4613.4,2.16755284]
[1755186738366,3.649,4613.8,4613.4,2.16759051]
[1755186738882,0.108,4613.9,4613.3,2.16763253]
[1755186739374,0.4917,4615.5,4613.4,0.4441]
[1755186739598,0.4917,4615.5,4613.5,3.0]
[1755186739599,2.16670638,4615.3,4613.5,3.0]
[1755186739799,2.16684461,4615.1,4614.2,2.16721265]
[1755186739967,0.4331,4615.1,4613.5,3.0]
[1755186740173,2.16674552,4615.3,4613.6,0.34441]
[1755186740369,0.55,4615.9,4613.6,0.34441]
[1755186740370,0.4331,4615.7,4614.9,2.1668825]
[1755186740675,4.5728,4615.6,4613.7,3.0]
[1755186740873,2.1668313,4615.1,4613.7,3.0]
[1755186741181,3.648,4615.5,4613.7,3.0]
[1755186741382,3.648,4615.5,4613.9,3.0]
[1755186741582,3.648,4615.5,4613.8,0.778541]
[1755186741807,2.16676597,4615.2,4614.3,2.16714416]
[1755186741982,2.16671517,4615.3,4614.4,2.16712411]
[1755186742181,0.4917,4615.6,4613.8,2.94595093]
[1755186742383,2.16670638,4615.3,4613.9,3.32903609]
[1755186742645,0.4671,4615.3,4613.9,0.32903609]
[1755186742779,0.4671,4615.3,4613.8,2.16737269]
[1755186742780,0.4863,4615.2,4613.8,2.16737269]
[1755186743104,2.1668993,4614.9,4614.0,2.16727943]
[1755186743305,2.65306041,4615.2,4613.4,5.81782173]
[1755186743306,2.16680798,4615.1,4614.3,2.16715633]
[1755186743511,3.647,4615.5,4614.0,2.16731686]
[1755186743810,2.16665944,4615.4,4614.3,2.16796675]
[1755186744008,2.16665944,4615.4,4614.3,0.0008]
[1755186744009,2.16691768,4614.9,4614.3,0.0008]
[1755186744309,5.81394759,4614.8,4614.3,0.0008]
[1755186744513,2.16674996,4615.3,4614.5,2.16704468]
[1755186744674,3.647,4615.0,4614.3,0.0008]
[1755186744879,0.55,4614.8,4614.3,0.0008]
[1755186745213,0.9534,4614.7,4614.3,0.0008]
[1755186745418,2.16712898,4614.4,4614.3,0.0008]
[1755186745712,3.67052898,4614.4,4614.3,0.0008]
[1755186745915,2.16737262,4613.9,4613.1,2.16772312]
[1755186746209,2.16737262,4613.9,4612.5,3.4441]
[1755186746210,3.646,4613.9,4612.5,3.4441]
[1755186746427,2.16745379,4613.8,4612.7,2.16791959]
[1755186746633,0.41141,4614.9,4612.7,2.16791959]
[1755186746634,2.16697733,4614.8,4614.0,2.16729627]
[1755186746789,3.646,4614.8,4613.5,3.0]
[1755186746994,3.646,4614.8,4614.1,2.16726479]
[1755186747493,3.646,4614.8,4614.2,2.16719848]
[1755186747691,3.646,4614.8,4613.7,2.16745778]
[1755186747892,0.4863,4615.4,4614.1,2.16723393]
[1755186748135,2.16698518,4614.8,4613.3,3.4451]
[1755186748296,2.16683849,4615.1,4614.2,2.16718438]
[1755186748500,2.16689218,4615.0,4614.1,2.16726307]
[1755186748703,2.16679212,4615.2,4613.6,2.16750476]
[1755186748894,3.645,4615.3,4614.4,2.16712603]
[1755186749094,0.4863,4615.4,4613.8,0.4657741]
[1755186749293,2.16680316,4615.1,4614.3,2.16716828]
[1755186749533,3.645,4615.3,4613.5,3.1864]
[1755186749534,0.4671,4615.2,4613.5,0.1864]
[1755186749707,0.4671,4615.2,4614.0,0.108]
[1755186749708,0.108,4614.7,4614.0,0.108]
[1755186749896,0.108,4614.3,4613.6,0.108]
[1755186750097,0.108,4614.3,4613.7,2.16745778]
[1755186750318,0.108,4614.3,4614.1,2.16723288]
[1755186750509,0.108,4614.3,4614.1,2.16725356]
[1755186750721,0.4863,4615.1,4614.2,2.16722292]
[1755186751017,3.645,4614.8,4614.2,0.108]
[1755186751234,2.16703506,4614.6,4613.3,0.001]
[1755186751439,0.108,4613.9,4613.3,0.001]
[1755186751616,3.644,4613.8,4613.3,0.001]
[1755186752019,2.27559873,4613.4,4613.3,0.001]
[1755186752524,0.108,4613.4,4613.3,0.001]
[1755186752721,3.752,4613.7,4613.3,0.001]
[1755186752921,0.108,4613.7,4613.3,0.001]
[1755186753133,0.108,4614.2,4613.6,2.1674623]
[1755186753337,0.108,4614.2,4613.5,0.108]
[1755186753839,2.16685715,4615.0,4613.5,0.0008]
[1755186754039,0.108,4614.8,4614.1,0.108]
[1755186754427,0.108,4614.8,4613.5,0.0008]
[1755186754737,2.16698816,4614.7,4614.0,2.16727178]
[1755186755338,0.108,4614.8,4614.1,2.16722402]
[1755186755544,0.108,4614.8,4614.0,2.16731686]
[1755186755733,0.108,4614.8,4614.2,2.16721649]
[1755186755912,0.108,4614.8,4613.9,0.108]
[1755186756311,0.108,4614.8,4614.3,2.16714139]
[1755186756537,2.1669881,4614.7,4613.9,2.27532909]
[1755186756738,0.108,4614.8,4613.9,0.108]
[1755186756739,0.5943,4614.8,4613.9,0.108]
[1755186756944,0.5943,4614.8,4614.0,2.16731686]
[1755186757144,0.5943,4614.8,4614.1,2.16725517]
[1755186757350,0.108,4614.8,4614.7,2.1669881]
[1755186757515,0.002,4615.3,4614.1,0.44426637]
[1755186757718,0.108,4614.8,4614.2,3.108]
[1755186757918,0.108,4614.8,4614.5,2.16706755]
[1755186758155,0.108,4614.8,4614.3,2.16714994]
[1755186758326,0.108,4614.8,4613.5,0.0008]
[1755186758327,0.4863,4614.7,4613.5,0.0008]
[1755186758530,3.642,4614.6,4613.9,0.108]
[1755186758727,0.108,4614.5,4613.9,0.108]
[1755186758955,2.16712898,4614.4,4613.5,0.0008]
[1755186759260,0.108,4614.1,4613.5,2.16830846]
[1755186759456,0.108,4614.1,4613.5,0.0008]
[1755186759752,0.108,4614.1,4613.6,2.16749706]
[1755186760113,0.108,4614.1,4613.5,0.0008]
[1755186760316,1.0614,4614.1,4613.5,0.0008]
[1755186760553,1.0614,4614.1,4613.8,2.16740391]
[1755186760756,3.75,4614.3,4614.1,2.16724782]
[1755186760918,3.642,4614.3,4614.2,2.16722292]
[1755186761118,0.108,4614.5,4614.4,2.16712898]
[1755186761322,0.108,4614.5,4614.1,2.16726989]
[1755186761534,0.108,4614.5,4614.1,2.16726554]
[1755186761728,3.12230607,4614.9,4614.2,2.16721322]
[1755186761934,0.108,4614.4,4614.3,2.16717595]
[1755186762164,0.108,4614.4,4614.2,2.16721604]
[1755186762462,0.108,4614.4,4613.7,0.108]
[1755186762682,0.108,4614.4,4613.9,2.16736217]
[1755186762865,3.641,4614.8,4614.0,0.22753622]
[1755186763031,3.749,4614.8,4614.1,0.108]
[1755186763225,0.002,4614.9,4614.8,2.16694114]
[1755186763430,0.0012,4614.9,4614.8,5.18861055]
[1755186763631,0.0012,4614.9,4614.8,5.71904114]
[1755186763838,0.0012,4614.9,4614.8,5.90624114]
[1755186764044,0.0012,4614.9,4614.8,6.71356406]
[1755186764368,0.0012,4614.9,4614.8,6.77356406]
[1755186764569,0.0012,4614.9,4614.8,6.58716406]
[1755186765074,0.0012,4614.9,4614.8,6.77356406]
[1755186765268,0.0012,4614.9,4614.8,6.03506406]
[1755186765430,0.0012,4614.9,4614.8,5.22774114]
[1755186766142,0.0012,4614.9,4614.8,2.22774114]
[1755186766669,0.0012,4614.9,4614.8,0.0608]
[1755186767174,0.0012,4614.9,4614.8,2.22774114]
[1755186767367,0.0012,4614.9,4614.8,2.16774114]
[1755186768238,0.0012,4614.9,4614.8,0.0008]
[1755186768437,0.9546,4614.9,4614.2,2.227217]
[1755186768768,0.9546,4614.9,4614.7,2.16694188]
[1755186769009,0.0012,4614.9,4614.8,2.18861055]
[1755186769272,0.0012,4614.9,4614.8,6.04660312]
[1755186769477,0.0012,4614.9,4614.8,6.29300312]
[1755186769975,0.0012,4614.9,4614.8,6.10660312]
[1755186770585,0.0012,4614.9,4614.8,6.29300312]
[1755186770745,1e-08,4615.4,4615.3,2.16670638]
[1755186770943,1e-08,4615.4,4615.3,9.92955451]
[1755186772478,1e-08,4615.4,4615.3,9.74315451]
[1755186773280,1e-08,4615.4,4615.3,5.66005451]
[1755186773480,1e-08,4615.4,4615.3,8.86370638]
[1755186773870,1e-08,4615.4,4615.3,5.22670638]
[1755186774071,1e-08,4615.4,4615.3,5.22750638]
[1755186774995,0.94840001,4615.4,4615.3,3.0608]
[1755186775488,0.94840001,4615.4,4615.3,0.0608]
[1755186775662,1.05640001,4615.4,4615.3,0.0608]
[1755186777403,3.22305945,4615.4,4615.3,0.0608]
[1755186777605,3.76222244,4615.4,4615.3,0.0608]
[1755186778114,1.595563,4615.4,4615.3,0.0608]
[1755186778275,1.05640001,4615.4,4615.3,0.0608]
[1755186779276,3.22305945,4615.4,4615.3,0.0608]
[1755186779476,1.05640001,4615.4,4615.3,0.0608]
[1755186779910,0.10800001,4615.4,4615.3,0.0608]
[1755186780227,1.05640001,4615.4,4615.3,0.0608]
[1755186780381,0.10800001,4615.4,4615.3,0.0608]
[1755186780582,1e-08,4615.4,4615.3,2.22750638]
[1755186782014,1e-08,4615.4,4615.3,9.41973671]
[1755186782191,1e-08,4615.4,4615.3,10.05023671]
[1755186783312,1e-08,4615.7,4615.6,2.16656556]
[1755186783497,0.002,4616.3,4615.6,2.16656556]
[1755186783498,1e-08,4616.1,4615.7,2.16651862]
[1755186783703,1e-08,4616.1,4616.0,2.27437781]
[1755186783900,1e-08,4616.1,4616.0,7.29423114]
[1755186784106,1e-08,4616.1,4616.0,6.66373114]
[1755186784320,1e-08,4616.1,4616.0,7.10783114]
[1755186784519,1e-08,4616.1,4616.0,7.29423114]
[1755186784892,1e-08,4616.1,4616.0,7.29503114]
[1755186785423,0.002,4616.8,4616.7,2.16604934]
[1755186785585,0.4736,4618.9,4617.1,2.16586168]
[1755186785786,0.4736,4618.9,4616.8,5.16597857]
[1755186785787,0.002,4619.2,4618.6,2.16515827]
[1755186785987,1e-08,4619.2,4619.1,2.1649239]
[1755186786216,1e-08,4619.2,4619.1,9.55707313]
[1755186786382,1e-08,4619.2,4619.1,9.5354239]
[1755186786584,1e-08,4619.2,4619.1,10.72158979]
[1755186786784,1e-08,4619.2,4619.1,11.27158979]
[1755186787232,1e-08,4619.2,4619.1,6.45908979]
[1755186787436,1e-08,4619.2,4619.1,10.09108979]
[1755186788440,1e-08,4619.2,4619.1,8.9049239]
[1755186789718,1e-08,4619.2,4619.1,5.2729239]
[1755186789936,0.94840001,4619.2,4619.1,3.108]
[1755186790139,0.94840001,4619.2,4618.7,3.63]
[1755186790140,0.94840001,4619.2,4618.0,3.63]
[1755186790342,0.94840001,4619.2,4618.7,0.108]
[1755186790487,0.79572452,4619.2,4618.7,0.108]
[1755186790687,2.16498807,4619.0,4618.0,5.79540843]
[1755186790887,0.108,4619.0,4618.4,0.108]
[1755186791119,1e-08,4619.2,4619.1,2.1649239]
[1755186791326,1e-08,4619.2,4619.1,5.7939239]
[1755186791527,1e-08,4619.2,4619.1,9.88981608]
[1755186791902,1e-08,4619.2,4619.1,9.99781608]
[1755186792098,1e-08,4619.2,4619.1,6.36881608]
[1755186792329,1e-08,4619.2,4619.1,9.99781608]
[1755186793494,1e-08,4619.2,4619.1,10.44191608]
[1755186794032,1e-08,4619.2,4619.1,6.36881608]
[1755186794205,1e-08,4619.2,4619.1,9.99681608]
[1755186795030,1e-08,4619.2,4619.1,10.44091608]
[1755186795200,1e-08,4619.2,4619.1,9.99761608]
[1755186797322,1e-08,4619.2,4619.1,10.44171608]
[1755186797534,1e-08,4619.2,4619.1,9.99761608]
[1755186797899,1e-08,4619.2,4619.1,6.36961608]
[1755186798234,1e-08,4619.2,4619.1,9.99561608]
[1755186798946,1e-08,4619.2,4619.1,9.99461608]
[1755186801850,1e-08,4619.2,4619.1,9.99361608]
[1755186802047,1e-08,4619.2,4619.1,5.2737239]
[1755186802249,1e-08,4619.2,4619.1,8.8977239]
[1755186802553,1e-08,4619.2,4619.1,0.1088]
[1755186802554,0.90020001,4619.2,4619.1,0.1088]
[1755186803448,0.90020001,4619.2,4619.1,2.2737239]
[1755186803649,0.90020001,4619.2,4619.1,0.1088]
[1755186803858,0.45980001,4619.2,4619.1,0.1088]
[1755186804151,0.45980001,4619.2,4619.1,2.2737239]
[1755186804152,0.90020001,4619.2,4619.1,2.2737239]
[1755186804314,1e-08,4619.2,4619.1,2.2737239]
[1755186804517,1e-08,4619.2,4619.1,6.70154468]
[1755186804748,1e-08,4619.2,4619.1,6.67989545]
[1755186805254,1e-08,4619.7,4619.2,3.55]
[1755186805430,1e-08,4619.7,4619.6,2.27268958]
[1755186805625,1e-08,4619.7,4619.6,10.09842687]
[1755186805826,1e-08,4619.7,4619.6,10.52632687]
[1755186806026,1e-08,4619.7,4619.6,10.09842687]
[1755186806232,1e-08,4619.7,4619.6,10.18499487]
[1755186806733,1e-08,4620.2,4620.1,2.16445531]
[1755186806929,1e-08,4620.2,4620.1,8.91609986]
[1755186807136,0.4404,4621.8,4621.7,2.16370599]
[1755186807334,0.4404,4621.8,4621.5,2.16376685]
[1755186807335,0.9002,4621.8,4621.5,2.16376685]
[1755186807534,0.9002,4621.8,4621.3,0.108]
[1755186807815,5.196,4622.8,4619.6,0.086568]
[1755186807816,3.06390842,4621.7,4620.8,5.78508222]
[1755186807974,2.27180768,4621.5,4620.8,0.108]
[1755186808130,0.9002,4621.4,4620.8,0.108]
[1755186808534,0.9002,4621.3,4620.9,2.16406791]
[1755186808760,0.9002,4621.2,4620.8,0.108]
[1755186809067,0.9002,4621.1,4620.8,2.27212235]
[1755186809275,0.9002,4621.0,4620.8,0.108]
[1755186809587,0.9002,4620.9,4620.3,5.16432066]
[1755186809874,0.9002,4620.9,4620.8,2.16412742]
[1755186810071,0.4396,4621.5,4621.4,2.16384645]
[1755186810479,0.4396,4621.5,4621.2,2.16392958]
[1755186810480,0.108,4622.0,4621.2,2.16392958]
[1755186810683,0.4598,4621.5,4621.1,0.108]
[1755186810840,0.4598,4621.5,4621.4,2.16384645]
[1755186811183,0.108,4622.7,4621.9,2.16361236]
[1755186811336,0.4598,4622.8,4622.6,2.1632711]
[1755186811538,0.15992294,4623.5,4621.9,3.62]
[1755186811539,0.4598,4622.7,4622.4,0.108]
[1755186811739,0.4598,4622.6,4622.4,0.108]
[1755186811967,0.108,4623.1,4622.4,0.108]
[1755186811968,0.4598,4622.5,4622.4,0.108]
[1755186812173,0.108,4623.1,4622.5,2.16333153]
[1755186812398,0.9002,4623.9,4622.5,3.0]
[1755186812557,0.9002,4623.8,4622.5,3.0]
[1755186812742,2.16314991,4622.9,4621.5,3.0]
[1755186813076,2.16253264,4624.3,4621.5,3.0]
[1755186813077,0.9002,4622.8,4622.1,2.16351757]
[1755186813277,0.9002,4622.8,4621.7,5.16366426]
[1755186813479,0.9002,4622.7,4621.6,0.649069]
[1755186813641,0.9002,4622.7,4622.2,2.16346775]
[1755186813975,0.9002,4622.6,4622.2,2.16346775]
[1755186814203,3.06353215,4622.5,4621.7,2.16369444]
[1755186814371,0.9002,4622.4,4620.8,3.0]
[1755186814569,3.06367094,4622.3,4621.4,2.16384442]
[1755186814798,2.16347193,4622.2,4621.0,5.16403375]
[1755186815001,0.9002,4622.3,4621.8,2.16364476]
[1755186815326,0.002,4622.5,4621.4,3.0]
[1755186815610,0.002,4622.5,4621.9,2.16358131]
[1755186815908,0.002,4622.5,4621.4,3.0]
[1755186816077,0.002,4622.5,4622.2,2.16345123]
[1755186816268,0.9022,4622.5,4622.2,2.16345123]
[1755186816468,0.9002,4622.4,4621.9,0.0008]
[1755186816674,0.9002,4622.3,4621.9,0.0008]
[1755186816869,0.4598,4622.2,4621.0,3.0]
[1755186817070,0.002,4622.5,4622.0,2.16352025]
[1755186817295,0.9002,4622.4,4622.0,2.16352025]
[1755186817502,0.9002,4622.4,4621.3,2.16389327]
[1755186817699,0.4598,4622.3,4622.0,2.16356058]
[1755186817895,0.4598,4622.3,4622.2,2.16347193]
[1755186818209,0.9002,4622.3,4621.1,0.7266179]
[1755186818408,0.9002,4622.3,4621.2,0.0216394]
[1755186818608,0.4598,4622.3,4621.8,2.16363727]
[1755186818808,0.002,4622.5,4620.7,0.4279]
[1755186818809,0.002,4622.5,4621.3,3.0]
[1755186819015,0.002,4622.5,4622.1,2.16350608]
[1755186819175,0.002,4622.5,4621.4,2.16384645]
[1755186819371,0.002,4622.5,4621.1,3.617]
[1755186819372,0.002,4622.5,4622.4,2.16337833]
[1755186820222,0.002,4622.5,4622.0,2.16354067]
[1755186820511,0.002,4622.5,4622.4,2.16337833]
[1755186820713,0.002,4622.5,4622.3,2.1634163]
[1755186820873,0.002,4622.5,4621.7,3.0]
[1755186820874,0.002,4622.5,4621.9,2.16361236]
[1755186821074,0.002,4622.5,4621.7,3.0]
[1755186821288,0.002,4622.5,4622.3,2.1634221]
[1755186821486,0.002,4622.5,4622.4,2.16337833]
[1755186822124,0.002,4622.5,4622.4,2.18501211]
[1755186822292,0.002,4622.5,4622.4,2.27137833]
[1755186823427,1e-08,4622.5,4622.4,5.88567833]
[1755186823599,1e-08,4622.5,4622.4,7.05209239]
[1755186824126,1e-08,4622.5,4622.4,6.86569239]
[1755186824628,1e-08,4622.5,4622.4,6.43779239]
[1755186824798,1e-08,4622.5,4622.4,10.05179239]
[1755186825800,1e-08,4622.5,4622.4,6.43779239]
[1755186826000,1e-08,4622.5,4622.4,10.05179239]
[1755186826502,1e-08,4622.5,4622.4,10.05259239]
[1755186827533,1e-08,4622.5,4622.4,10.48049239]
[1755186827701,1e-08,4622.5,4622.4,10.05159239]
[1755186828129,1e-08,4622.5,4622.4,10.05059239]
[1755186828628,1e-08,4622.5,4622.4,2.27217833]
[1755186828800,0.90020001,4622.5,4622.4,0.1088]
[1755186829006,1e-08,4622.5,4622.4,2.27217833]
[1755186829607,1e-08,4622.5,4622.4,5.88417833]
[1755186829813,1e-08,4622.5,4622.4,8.88417833]
[1755186830009,1e-08,4622.5,4622.4,9.988942]
[1755186830715,1e-08,4622.5,4622.4,10.603242]
[1755186830923,1e-08,4622.5,4622.4,11.153242]
[1755186831124,1e-08,4623.0,4622.8,2.16319113]
[1755186831323,1e-08,4623.0,4622.9,36.48570486]
[1755186831537,1e-08,4623.0,4622.9,38.78394898]
[1755186832026,1e-08,4623.0,4622.9,38.97034898]
[1755186832325,0.00120001,4623.5,4623.4,2.16291041]
[1755186832630,0.00120001,4623.5,4623.4,9.22812928]
[1755186832805,0.00120001,4623.5,4623.4,9.75940018]
[1755186833209,0.00120001,4623.5,4623.4,9.31450018]
[1755186833418,0.00120001,4623.5,4623.4,5.70350018]
[1755186833655,0.00120001,4623.5,4623.4,9.31350018]
[1755186834413,0.00120001,4623.5,4623.4,9.75840018]
[1755186834614,0.9639,4624.9,4623.5,3.0]
[1755186834926,0.9639,4624.9,4624.8,0.108]
[1755186835123,0.4921,4625.5,4624.8,0.108]
[1755186835445,0.4718,4625.4,4624.8,0.108]
[1755186835650,0.4718,4625.4,4625.1,2.16210068]
[1755186835850,0.9639,4625.3,4625.2,0.108]
[1755186836145,0.9149125,4625.8,4625.7,2.16183496]
[1755186836361,0.9149125,4625.8,4625.0,3.0]
[1755186836362,1.3867125,4625.8,4625.0,3.0]
[1755186836691,3.23374242,4625.7,4624.9,2.16220742]
[1755186836851,0.9639,4625.6,4625.1,0.108]
[1755186837236,0.9639,4625.5,4625.1,2.27011385]
[1755186837437,0.9639,4625.4,4625.2,2.16205221]
[1755186837633,0.108,4625.7,4625.1,0.108]
[1755186837934,0.9639,4625.6,4625.1,0.108]
[1755186838139,0.9639,4625.5,4625.1,0.108]
[1755186838334,0.9639,4625.4,4625.1,0.108]
[1755186838576,0.9639,4625.3,4624.9,0.0008]
[1755186838733,0.9639,4625.2,4624.9,0.0008]
[1755186838933,0.9639,4625.1,4624.9,0.0008]
[1755186839210,3.12606216,4625.0,4624.9,0.0008]
[1755186839356,3.12606216,4625.0,4622.2,2.1634403]
[1755186839357,2.16230761,4624.7,4623.8,0.108]
[1755186839707,0.9639,4624.6,4623.8,0.108]
[1755186839864,0.9639,4624.5,4623.8,0.108]
[1755186840064,0.9639,4624.4,4623.8,0.108]
[1755186840268,0.108,4623.9,4623.2,0.108]
[1755186840591,0.4921,4624.9,4623.5,2.16286087]
[1755186840790,0.4921,4624.9,4624.3,0.108]
[1755186841089,2.16236505,4624.6,4624.3,0.108]
[1755186841291,2.16279946,4623.7,4623.5,0.108]
[1755186841491,0.55,4625.1,4623.3,0.108]
[1755186841492,0.108,4623.9,4623.3,0.108]
[1755186841795,0.108,4623.9,4622.3,0.001]
[1755186841796,0.108,4623.5,4622.8,0.108]
[1755186842088,0.55,4624.5,4622.3,0.001]
[1755186842089,0.9639,4623.4,4622.3,0.001]
[1755186842291,0.9639,4623.3,4622.3,0.001]
[1755186842457,2.16307154,4623.1,4622.8,0.108]
[1755186842656,2.16307154,4623.1,4622.3,0.001]
[1755186842657,2.16320161,4622.8,4622.3,0.001]
[1755186842952,3.12714607,4622.7,4622.5,0.108]
[1755186843157,0.9639,4622.6,4622.5,0.108]
[1755186843654,0.108,4623.2,4622.5,0.108]
[1755186843655,1.0719,4623.2,4622.5,0.108]
[1755186843847,3.23490931,4623.2,4622.5,0.108]
[1755186844266,2.16305355,4623.1,4622.5,0.108]
[1755186844670,2.70284144,4623.1,4622.5,0.108]
[1755186844875,2.1631062,4623.0,4622.5,0.108]
[1755186845192,0.9639,4622.9,4622.3,0.001]
[1755186845414,0.9639,4622.9,4622.5,0.108]
[1755186845790,0.9639,4622.8,4622.5,0.108]
[1755186845992,2.16328473,4622.6,4622.5,0.108]
[1755186846217,0.9639,4622.6,4622.3,0.001]
[1755186846429,0.9639,4623.2,4622.3,0.217451]
[1755186846718,0.9639,4623.2,4622.5,2.27132832]
[1755186846916,0.9639,4623.2,4622.5,0.108]
[1755186847119,2.16253909,4624.2,4622.4,2.16337415]
[1755186847120,0.9639,4623.5,4622.4,2.16337833]
[1755186847420,0.9639,4623.5,4623.1,0.108]
[1755186847721,0.9639,4623.4,4622.4,0.0008]
[1755186847941,0.9639,4623.4,4622.9,0.108]
[1755186848066,0.4718,4623.3,4622.9,0.108]
[1755186848265,0.9639,4623.2,4622.9,0.108]
[1755186848468,3.23495719,4623.1,4622.5,0.108]
[1755186848670,2.16314434,4622.9,4622.3,0.001]
[1755186848870,0.108,4622.7,4622.3,0.001]
[1755186849119,0.9639,4622.6,4622.3,0.001]
[1755186849473,0.4921,4623.2,4622.3,0.001]
[1755186849825,0.4921,4623.2,4622.8,0.108]
[1755186849975,0.4921,4623.2,4622.3,2.16440617]
[1755186849976,0.9639,4623.1,4622.3,0.001]
[1755186850176,0.108,4623.0,4622.3,2.27242429]
[1755186850475,2.16319157,4622.8,4622.3,0.109]
[1755186850888,0.9639,4622.7,4622.3,0.109]